fUST/lending_fUST_20240123
["ID","MTS","AMOUNT","RATE_DAILY","PERIOD"]
[312551577,1705968638798,-2039.05381066,0.00020979,2]
[312551578,1705968638808,-232.97414454,0.00021,2]
[312551579,1705968638818,-30949.90955221,0.00021,2]
[312551580,1705968638830,-9860.59463886,0.00021,2]
[312551581,1705968638840,-194.34533816,0.00021,2]
[312551583,1705968638850,-8459.09426838,0.00021665,2]
[312551585,1705968638860,-6766.03806076,0.00021896,2]
[312551586,1705968638870,-50000.0,0.00021914,2]
[312551587,1705968638879,-166.666666,0.00021918,2]
[312551588,1705968638889,-3968.39951784,0.00022,2]
[312551589,1705968638899,-425.98515357,0.00022,2]
[312551590,1705968638908,-293.4468762,0.00022,4]
[312551591,1705968638918,-10286.07985625,0.00022221,2]
[312551592,1705968638927,-172.43621127,0.00022223,2]
[312551593,1705968638936,-166.666666,0.00022431,2]
[312551594,1705968638945,-166.666666,0.00022944,2]
[312551595,1705968638955,-1571.50470749,0.00023,2]
[312551596,1705968638965,-168.192599,0.00023053,2]
[312551597,1705968638975,-8068.54889418,0.00023072,2]
[312551598,1705968638985,-166.666666,0.00023456,2]
[312551599,1705968639001,-166.666666,0.00023969,2]
[312551600,1705968639011,-7704.47868303,0.00024,2]
[312551601,1705968639021,-576.0,0.000242,2]
[312551602,1705968639030,-166.666666,0.00024482,2]
[312551603,1705968639040,-5000.0,0.00024654,2]
[312551604,1705968639049,-467.475269,0.00024658,2]
[312551605,1705968639059,-280.0,0.00024658,2]
[312551606,1705968639069,-1582.21305813,0.000247,2]
[312551607,1705968639083,-151.0,0.00024727,2]
[312551608,1705968639093,-5693.13993424,0.000249,2]
[312551609,1705968639138,-10202.84952288,0.000249,2]
[312551627,1705968641094,-526.75292248,0.00014037,2]
[312551628,1705968641104,-154.9690062,0.00014037,2]
[312551629,1705968641114,-6833.95013883,0.000249,2]
[312551630,1705968641125,-56342.35188615,0.000249,2]
[312551631,1705968641134,-151.0,0.000249,2]
[312551632,1705968641144,-618.15821751,0.00024919,2]
[312551633,1705968641154,-462.52267051,0.00024998,2]
[312551634,1705968641163,-475.68781302,0.00024999,2]
[312551635,1705968641172,-7381.29040931,0.00025,2]
[312551636,1705968641182,-4723.24260277,0.00025,2]
[312551637,1705968641192,-154.9690062,0.00025,2]
[312551638,1705968641202,-1500.40236428,0.00025,2]
[312551639,1705968641211,-14739.84371486,0.00025,10]
[312551640,1705968641220,-25330.29672088,0.00025,2]
[312551641,1705968641229,-1002.17175487,0.00025,2]
[312551642,1705968641239,-154.9690062,0.00025,2]
[312551643,1705968641249,-679.71377977,0.00025,2]
[312551644,1705968641259,-154.98450155,0.00025,2]
[312551645,1705968641268,-232.6066,0.00025046,2]
[312551646,1705968641278,-150.0,0.000251,2]
[312551647,1705968641287,-163.995668,0.000251,2]
[312551648,1705968641297,-151.48485454,0.00025122,2]
[312551649,1705968641306,-1826.00758456,0.00025172,2]
[312551650,1705968641315,-2084.29033128,0.00025172,2]
[312551651,1705968641325,-1666.00675965,0.00025172,7]
[312551895,1705968646170,-155.12081877,0.000149,2]
[312551896,1705968646179,-2380.78414491,0.00025162,3]
[312551897,1705968646190,-19723.6487854,0.00025162,3]
[312552010,1705969832683,-154.95351395,0.00017888,2]
[312552011,1705969832694,-874.37604694,0.00017888,2]
[312552012,1705969832703,-161.02224773,0.00017889,2]
[312552013,1705969832712,-595.13721922,0.00017889,2]
[312552014,1705969832722,-1266.7890629,0.00017889,2]
[312552015,1705969832732,-687.96014716,0.0001789,2]
[312552016,1705969832741,-627.30824815,0.00017891,2]
[312552017,1705969832752,-52.79291947,0.00017891,2]
[312552018,1705969832762,-272.55691777,0.00017892,2]
[312552019,1705969832771,-246.21885002,0.00017892,2]
[312552020,1705969832781,-118.14028044,0.00017892,2]
[312552028,1705969838270,-154.95351395,0.00017887,2]
[312552030,1705969838281,-4695.81364164,0.00017892,2]
[312552031,1705969838291,-372.47407794,0.00017893,2]
[312552045,1705969838403,-149.64289874,0.00017893,2]
[312552049,1705969838414,-154.95351395,0.00017894,3]
[312552051,1705969838424,-9898.25311019,0.00017898,2]
[312552053,1705969838436,-639.71530416,0.00017898,2]
[312552055,1705969838445,-1374.91609523,0.00018001,2]
[312552145,1705969841289,-417.14558672,0.00018001,2]
[312552200,1705969843263,-154.95351395,0.00017886,3]
[312552202,1705969843273,-281.86630515,0.00018001,2]
[312552204,1705969843282,-470.67463112,0.00018001,2]
[312552206,1705969843291,-154.95351395,0.00018001,2]
[312552208,1705969843301,-154.95351395,0.00018001,2]
[312552210,1705969843310,-154.95351395,0.00018001,2]
[312552212,1705969843319,-112.59554551,0.00018001,2]
[312552221,1705969843393,-42.35796844,0.00018001,2]
[312552223,1705969843403,-154.95351395,0.00018001,2]
[312552224,1705969843412,-154.95351395,0.00018002,2]
[312552225,1705969843421,-99.0860037,0.00018003,2]
[312552519,1705969846385,-178.46336279,0.00018002,2]
[312552521,1705969846395,-709.18573505,0.00018002,2]
[312552523,1705969846405,-24800.9139963,0.00018003,2]
[312552525,1705969846414,-1582.38308236,0.00019,2]
[312552527,1705969846423,-166.525827,0.00019178,2]
[312552529,1705969846431,-154.9690062,0.0002,2]
[312552531,1705969846441,-154.9690062,0.0002,2]
[312552533,1705969846452,-154.9690062,0.0002,2]
[312552535,1705969846462,-323.13003236,0.0002,2]
[312552537,1705969846471,-667.24083957,0.0002,2]
[312552539,1705969846480,-850.30063575,0.0002,2]
[312552541,1705969846489,-678.6288756,0.0002,2]
[312552543,1705969846498,-1197.97622761,0.0002,2]
[312552545,1705969846507,-154.95351395,0.0002,2]
[312552546,1705969846517,-154.95351395,0.0002,2]
[312552548,1705969846526,-2087.53060694,0.00020076,3]
[312552892,1705971032856,-154.93802479,0.00016749,3]
[312552894,1705971032866,-1266.7890629,0.00016749,2]
[312552896,1705971032875,-272.55691777,0.0001675,2]
[312552898,1705971032883,-687.96014716,0.0001675,2]
[312552900,1705971032892,-470.67463112,0.00016752,2]
[312552901,1705971032901,-1266.59086832,0.00016754,2]
[312552914,1705971033011,-19060.98050044,0.00016754,2]
[312552951,1705971038452,-4572.42863124,0.00016754,2]
[312552953,1705971038462,-874.37604694,0.00017235,2]
[312552955,1705971038472,-937.88392891,0.00017558,2]
[312552957,1705971038482,-172.43621127,0.00017798,2]
[312552959,1705971038491,-3645.72470452,0.00017898,2]
[312552964,1705971038526,-6892.24370983,0.00017898,2]
[312552966,1705971038535,-160.32397433,0.00018001,2]
[312552968,1705971038545,-353.37147849,0.00018001,2]
[312552970,1705971038555,-680.10116762,0.00018002,2]
[312552971,1705971038564,-246.01934779,0.00018002,2]
[312552974,1705971038573,-8068.54889418,0.000189,2]
[312552976,1705971038583,-1582.38308236,0.00019,2]
[312552977,1705971038593,-164.859047,0.00019178,2]
[312552979,1705971038601,-164.091319,0.00019178,2]
[312552981,1705971038610,-21688.0579794,0.00019966,3]
[312553131,1705971041584,-3199.9420206,0.00019966,3]
[312553132,1705971041593,-1046.48219268,0.0001997,3]
[312553133,1705971041604,-1275.37785521,0.0001997,3]
[312553192,1705971043523,-13444.85092156,0.0001997,3]
[312553225,1705971399995,1000.0,0.0003,120]
[312553286,1705972232686,-581.08305281,0.00016186,2]
[312553332,1705972238782,-10202.84952288,0.00016186,2]
[312553514,1705972246771,-2172.81572479,0.00016186,2]
[312553515,1705972246828,-7561.41838996,0.00016186,2]
[312553564,1705973437975,-1253.61322307,0.00014591,2]
[312553565,1705973437984,-154.92253873,0.00014592,2]
[312553566,1705973437993,-644.40876473,0.00014592,2]
[312553567,1705973438003,-470.67463112,0.00014602,2]
[312553568,1705973438012,-154.93802479,0.00014602,2]
[312553569,1705973438022,-155.10144547,0.00014602,2]
[312553570,1705973438031,-155.14048358,0.00014602,2]
[312553571,1705973438040,-155.05233319,0.00014602,2]
[312553572,1705973438049,-155.0562566,0.00014602,2]
[312553573,1705973438058,-154.93802479,0.00014603,2]
[312553574,1705973438067,-65759.79844144,0.00014603,2]
[312553575,1705973438076,-24900.0,0.00014604,2]
[312553576,1705973438085,-154.93802479,0.00015,2]
[312553577,1705973438094,-687.96014716,0.00015,2]
[312553578,1705973438108,-1266.7890629,0.00015,2]
[312553579,1705973438117,-163.80645135,0.00015037,2]
[312553580,1705973438126,-3172.1058796,0.0001586,2]
[312553581,1705973438135,-200.0,0.00016063,2]
[312553582,1705973438145,-155.17569594,0.00016184,2]
[312553583,1705973438154,-180.27988608,0.00016184,2]
[312553584,1705973438163,-876.39189184,0.00016184,2]
[312553585,1705973438172,-3209.21830731,0.00016184,2]
[312553586,1705973438181,-158.44267329,0.00016184,2]
[312553587,1705973438191,-711.772838,0.00016184,2]
[312553588,1705973438200,-303.68428381,0.00016184,2]
[312553589,1705973438209,-268.33405762,0.00016184,2]
[312553590,1705973438218,-225.24174207,0.00016184,2]
[312553591,1705973438227,-520.35864334,0.00016184,2]
[312553592,1705973438236,-1990.08489948,0.00016184,2]
[312553593,1705973438244,-309.78320129,0.00016184,2]
[312553594,1705973438253,-178.91876323,0.00016184,2]
[312553595,1705973438262,-364.06569522,0.00016184,2]
[312553596,1705973438271,-5315.81570531,0.00016185,2]
[312553597,1705973438280,-620.6669279,0.00016186,2]
[312553598,1705973438289,-284227.95491571,0.00016186,2]
[312553599,1705973438298,-343.09681091,0.00016186,2]
[312553600,1705973438309,-154.92998483,0.00016186,2]
[312553601,1705973438319,-272.55691777,0.000165,2]
[312553602,1705973438328,-151.0,0.00017175,2]
[312553603,1705973438337,-874.37604694,0.00017235,2]
[312553604,1705973438347,-7426.07985625,0.0001789,2]
[312553605,1705973438357,-151.0,0.0001789,2]
[312553606,1705973438365,-151.0,0.0001789,2]
[312553608,1705973438374,-151.0,0.0001789,2]
[312553609,1705973438384,-151.0,0.0001789,2]
[312553610,1705973438394,-151.0,0.0001789,2]
[312553611,1705973438403,-151.0,0.0001789,2]
[312553612,1705973438412,-151.0,0.0001789,2]
[312553613,1705973438421,-192.127802,0.0001789,2]
[312553614,1705973438430,-151.0,0.0001789,2]
[312553615,1705973438440,-825.229321,0.0001789,2]
[312553616,1705973438449,-825.229321,0.0001789,2]
[312553617,1705973438459,-825.229321,0.0001789,2]
[312553618,1705973438469,-825.229321,0.0001789,2]
[312553619,1705973438478,-825.229321,0.0001789,2]
[312553620,1705973438487,-825.229321,0.0001789,2]
[312553621,1705973438497,-825.229321,0.0001789,2]
[312553622,1705973438507,-825.229321,0.0001789,2]
[312553623,1705973438516,-825.229321,0.0001789,2]
[312553624,1705973438526,-825.229321,0.0001789,2]
[312553625,1705973438535,-825.229321,0.0001789,2]
[312553626,1705973438544,-825.229321,0.0001789,2]
[312553627,1705973438554,-825.229321,0.0001789,2]
[312553628,1705973438563,-825.229321,0.0001789,2]
[312553629,1705973438572,-825.229321,0.0001789,2]
[312553630,1705973438582,-825.229321,0.0001789,2]
[312553631,1705973438592,-825.229321,0.0001789,2]
[312553632,1705973438601,-825.229321,0.0001789,2]
[312553633,1705973438611,-825.229321,0.0001789,2]
[312553634,1705973438620,-825.229327,0.0001789,2]
[312553635,1705973438629,-151.0,0.0001789,2]
[312553636,1705973438638,-169.847128,0.0001789,2]
[312553637,1705973438647,-219.068333,0.0001789,2]
[312553638,1705973438657,-10000.0,0.0001789,2]
[312553639,1705973438667,-10000.0,0.0001789,2]
[312553640,1705973438679,-10000.0,0.0001789,2]
[312553641,1705973438689,-10000.0,0.0001789,2]
[312553642,1705973438698,-10000.0,0.0001789,2]
[312553643,1705973438707,-10000.0,0.0001789,2]
[312553644,1705973438717,-10000.0,0.0001789,2]
[312553645,1705973438727,-10000.0,0.0001789,2]
[312553646,1705973438736,-1540.41814009,0.0001789,2]
[312553647,1705973438749,-8459.58185991,0.0001789,2]
[312553648,1705973438759,-1743.26766297,0.0001789,2]
[312553649,1705973438770,-968.78854804,0.0001789,2]
[312553650,1705973438782,-7287.94378899,0.0001789,2]
[312553651,1705973438791,-10000.0,0.0001789,2]
[312553652,1705973438801,-5585.02197709,0.0001789,2]
[312553668,1705973440872,-4414.97802291,0.0001789,2]
[312553669,1705973440881,-10000.0,0.0001789,2]
[312553670,1705973440891,-3207.93975155,0.0001789,2]
[312553740,1705973792780,213.06207268,0.00029,30]
[312553786,1705974632050,-601.88783808,0.00015837,2]
[312553789,1705974632062,-2632.71256302,0.00015837,2]
[312553794,1705974632106,-1423.65147968,0.00015837,2]
[312553841,1705974638045,-10202.84952288,0.00015837,2]
[312553842,1705974638101,-1263.82901674,0.00015837,2]
[312553843,1705974638161,-8775.0695796,0.00015837,2]
[312553844,1705974638172,-1266.95335862,0.00015946,2]
[312553845,1705974638181,-154.90705577,0.00015946,2]
[312553846,1705974638191,-688.04534334,0.00015947,2]
[312553847,1705974638200,-470.75245248,0.0001597,2]
[312553848,1705974638210,-172.54673423,0.00015984,2]
[312553849,1705974638220,-238.61142826,0.00016084,2]
[312553851,1705974638229,-646.20561882,0.00016085,2]
[312553853,1705974638238,-272.59010519,0.000165,2]
[312553855,1705974638247,-874.53177436,0.00017235,2]
[312553857,1705974638256,-155.32729874,0.00017888,2]
[312553859,1705974638266,-434.93936439,0.00017888,2]
[312553860,1705974638275,-154.92998483,0.0001789,2]
[312553861,1705974638287,-181.525401,0.0001789,2]
[312553862,1705974638296,-181.525401,0.0001789,2]
[312553863,1705974638306,-181.525401,0.0001789,2]
[312553864,1705974638315,-181.525401,0.0001789,2]
[312553865,1705974638324,-181.525401,0.0001789,2]
[312553866,1705974638333,-181.525401,0.0001789,2]
[312553867,1705974638342,-181.525401,0.0001789,2]
[312553868,1705974638351,-181.525401,0.0001789,2]
[312553869,1705974638360,-181.525401,0.0001789,2]
[312553870,1705974638369,-181.525401,0.0001789,2]
[312553871,1705974638379,-181.525401,0.0001789,2]
[312553872,1705974638390,-181.525401,0.0001789,2]
[312553873,1705974638520,-181.525401,0.0001789,2]
[312553874,1705974638529,-181.525401,0.0001789,2]
[312553875,1705974638539,-181.525401,0.0001789,2]
[312553876,1705974638549,-181.525401,0.0001789,2]
[312553877,1705974638558,-181.525401,0.0001789,2]
[312553878,1705974638567,-181.525401,0.0001789,2]
[312553879,1705974638576,-181.525401,0.0001789,2]
[312553880,1705974638585,-181.525399,0.0001789,2]
[312553881,1705974638595,-10537.96841435,0.00017898,2]
[312553882,1705974638604,-5382.61677105,0.000189,2]
[312553883,1705974638613,-1582.67395939,0.00019,2]
[312553884,1705974638623,-166.525827,0.00019178,2]
[312553885,1705974638631,-164.091319,0.00019178,2]
[312553886,1705974638641,-303.48339143,0.000197,2]
[312553887,1705974638650,-1926.72220115,0.00019794,2]
[312553968,1705974643112,-10540.36052776,0.00018899,2]
[312553970,1705974643122,-1582.67395939,0.00019177,2]
[312553972,1705974643131,-1800.62812683,0.00019794,2]
[312553993,1705974665004,159.25765522,0.00020889,20]
[312554162,1705975843303,-154.90705577,0.00016309,3]
[312554163,1705975843312,-1017.52261407,0.00016309,2]
[312554175,1705975917106,1000.0,0.0003,120]
[312554190,1705976466613,-154.90705577,0.00014759,2]
[312554191,1705976466636,-265.51759078,0.0001476,2]
[312554192,1705976466660,-294.93744974,0.00014761,2]
[312554193,1705976482139,114.63790371,0.00013857,2]
[312554240,1705977032456,-40.26915206,0.00013857,2]
[312554242,1705977032466,-343.14492295,0.00013857,2]
[312554244,1705977032475,-620.75427787,0.00013857,2]
[312554246,1705977032484,-920.36132335,0.00014743,2]
[312554276,1705977041509,-23979.63867665,0.00014743,2]
[312554279,1705977041519,-172.5467342,0.000149,2]
[312554280,1705977041530,-1266.95335862,0.00015,2]
[312554281,1705977041540,-295.44647317,0.00015397,2]
[312554282,1705977041549,-266.78623792,0.00015398,2]
[312554283,1705977041559,-6543.75159491,0.0001631,2]
[312554284,1705977041569,-263.75256717,0.00016427,2]
[312554285,1705977041578,-155.13043777,0.00016427,2]
[312554286,1705977041587,-179.83491474,0.00016427,2]
[312554287,1705977041596,-2629.95309204,0.00016427,2]
[312554288,1705977041606,-3136.82912228,0.00016427,2]
[312554289,1705977041615,-176.05257145,0.00016427,2]
[312554290,1705977041624,-2117.42844319,0.00016427,2]
[312554291,1705977041633,-1248.23507662,0.00016427,2]
[312554292,1705977041642,-1703.33357679,0.00016428,2]
[312554293,1705977041651,-272.59010519,0.000165,2]
[312554294,1705977041661,-874.53177436,0.00017235,2]
[312554295,1705977041671,-7428.7106814,0.0001789,2]
[312554296,1705977041680,-10540.36052776,0.00017898,2]
[312554297,1705977041690,-164.091319,0.00019178,2]
[312554298,1705977041700,-198.8089634,0.00019452,2]
[312554299,1705977041709,-288.6234804,0.000197,2]
[312554335,1705977046548,-486.0625933,0.00013857,2]
[312554398,1705977451100,150.0,0.0003,120]
[312554410,1705977929552,200.0,0.00027,19]
[312554411,1705977976716,200.0,0.00027,19]
[312554412,1705977978697,200.0,0.00027,19]
[312554413,1705977979758,200.0,0.00027,19]
[312554414,1705977980772,200.0,0.00027,19]
[312554415,1705977981486,200.0,0.00027,19]
[312554416,1705977982099,200.0,0.00027,19]
[312554417,1705977984712,200.0,0.00027,19]
[312554418,1705977985382,200.0,0.00027,19]
[312554419,1705977986004,200.0,0.00027,19]
[312554420,1705977986819,200.0,0.00027,19]
[312554569,1705978238963,-1008.30311981,0.00012608,2]
[312554571,1705978239019,-466.4796542,0.00012608,2]
[312554572,1705978239029,-154.90705577,0.00013856,2]
[312554573,1705978239038,-463.84968646,0.00013857,2]
[312554574,1705978239047,-1266.95335862,0.00015,2]
[312554575,1705978239057,-5452.30788002,0.00016116,2]
[312554653,1705979245608,1000.0,0.0003,120]
[312554768,1705979438211,-154.8915759,0.00014762,2]
[312554770,1705979438221,-154.8915759,0.00014762,2]
[312554772,1705979438230,-470.75245248,0.00014763,2]
[312554774,1705979438239,-11414.96676065,0.00014765,2]
[312554778,1705979438269,-13485.03323935,0.00014765,2]
[312554780,1705979438279,-1266.95335862,0.00015,2]
[312554782,1705979438289,-688.04534334,0.00015,2]
[312554784,1705979438298,-3180.51717973,0.00015792,2]
[312554786,1705979438308,-154.93802479,0.00016114,2]
[312554788,1705979438317,-159.23998451,0.00016114,2]
[312554790,1705979438326,-364.06569522,0.00016114,2]
[312554792,1705979438336,-526.98042751,0.00016114,2]
[312554794,1705979438345,-178.91876323,0.00016114,2]
[312554796,1705979438355,-713.39204448,0.00016114,2]
[312554798,1705979438364,-268.53505899,0.00016114,2]
[312554799,1705979438374,-304.13453367,0.00016114,2]
[312554800,1705979438383,-155.40308796,0.00016114,2]
[312554801,1705979438393,-225.27249655,0.00016114,2]
[312554803,1705979438402,-5362.10596277,0.00016114,2]
[312554805,1705979438411,-180.69433126,0.00016114,2]
[312554807,1705979438420,-878.31251232,0.00016114,2]
[312554809,1705979438429,-1995.16928863,0.00016114,2]
[312554810,1705979438439,-4296.29636394,0.00016115,2]
[312554812,1705979438448,-297.467896,0.00016116,2]
[312554814,1705979438457,-297.467896,0.00016116,2]
[312554816,1705979438467,-588.085186,0.00016116,2]
[312554819,1705979438487,-588.085186,0.00016116,2]
[312554822,1705979438500,-1062.694548,0.00016116,2]
[312554824,1705979438510,-1062.694548,0.00016116,2]
[312554826,1705979438522,-1062.694548,0.00016116,2]
[312554828,1705979438533,-1062.694548,0.00016116,2]
[312554830,1705979438543,-1062.694548,0.00016116,2]
[312554832,1705979438553,-1062.694548,0.00016116,2]
[312554834,1705979438564,-219.169423,0.00016116,2]
[312554836,1705979438573,-9509.456626,0.00016116,2]
[312554838,1705979438583,-9509.456626,0.00016116,2]
[312554840,1705979438592,-9509.456626,0.00016116,2]
[312554842,1705979438602,-9509.456626,0.00016116,2]
[312554844,1705979438612,-9509.456626,0.00016116,2]
[312554846,1705979438622,-9509.456626,0.00016116,2]
[312554848,1705979438632,-9509.456626,0.00016116,2]
[312554850,1705979438641,-9509.456626,0.00016116,2]
[312554852,1705979438651,-316.178239,0.00016116,2]
[312554854,1705979438660,-316.178239,0.00016116,2]
[312554856,1705979438670,-316.178239,0.00016116,2]
[312554858,1705979438679,-316.178239,0.00016116,2]
[312554860,1705979438688,-316.178239,0.00016116,2]
[312554862,1705979438697,-316.178239,0.00016116,2]
[312554864,1705979438706,-316.178239,0.00016116,2]
[312554866,1705979438716,-316.178239,0.00016116,2]
[312554868,1705979438725,-151.0,0.00016116,2]
[312554870,1705979438735,-151.0,0.00016116,2]
[312554872,1705979438744,-151.0,0.00016116,2]
[312554874,1705979438754,-151.0,0.00016116,2]
[312554876,1705979438764,-151.0,0.00016116,2]
[312554878,1705979438773,-151.0,0.00016116,2]
[312554880,1705979438782,-151.0,0.00016116,2]
[312554882,1705979438791,-151.0,0.00016116,2]
[312554884,1705979438801,-151.0,0.00016116,2]
[312554886,1705979438810,-151.0,0.00016116,2]
[312554888,1705979438820,-151.0,0.00016116,2]
[312554890,1705979438830,-151.0,0.00016116,2]
[312554891,1705979438840,-195.084018,0.00016116,2]
[312554892,1705979438849,-151.0,0.00016116,2]
[312554893,1705979438859,-152.113117,0.00016116,2]
[312554895,1705979438868,-151.0,0.00016116,2]
[312554896,1705979438878,-151.234815,0.00016116,2]
[312554897,1705979438888,-151.0,0.00016116,2]
[312554898,1705979438898,-151.0,0.00016116,2]
[312554899,1705979438908,-151.0,0.00016116,2]
[312554900,1705979438918,-151.0,0.00016116,2]
[312554901,1705979438927,-151.079887,0.00016116,2]
[312554902,1705979438938,-200.0,0.00016241,2]
[312554903,1705979438948,-272.59010519,0.000165,2]
[312554904,1705979438958,-151.0,0.00017009,2]
[312554905,1705979438968,-874.53177436,0.00017235,2]
[312554906,1705979438977,-156.32290683,0.00017798,2]
[312554907,1705979438990,-10540.36052776,0.00017898,2]
[312554908,1705979438999,-151.320323,0.00017898,2]
[312554909,1705979439009,-169.925522,0.00017898,2]
[312554910,1705979439018,-297.467896,0.00017898,2]
[312554911,1705979439029,-297.467896,0.00017898,2]
[312554912,1705979439039,-588.085186,0.00017898,2]
[312554913,1705979439049,-588.085186,0.00017898,2]
[312554914,1705979439059,-1062.694548,0.00017898,2]
[312554915,1705979439068,-1062.694548,0.00017898,2]
[312554916,1705979439079,-1062.694548,0.00017898,2]
[312554917,1705979439089,-1062.694548,0.00017898,2]
[312554918,1705979439098,-1062.694548,0.00017898,2]
[312554919,1705979439108,-1062.694548,0.00017898,2]
[312554920,1705979439117,-1062.694548,0.00017898,2]
[312554921,1705979439127,-1062.694548,0.00017898,2]
[312554922,1705979439137,-9509.456626,0.00017898,2]
[312554923,1705979439147,-9509.456626,0.00017898,2]
[312554924,1705979439156,-9509.456626,0.00017898,2]
[312554925,1705979439166,-9509.456626,0.00017898,2]
[312554926,1705979439176,-9509.456626,0.00017898,2]
[312554927,1705979439185,-3002.88200935,0.00017898,2]
[312554928,1705979439200,-6506.57461665,0.00017898,2]
[312554929,1705979439210,-9509.456626,0.00017898,2]
[312554930,1705979439220,-9509.456626,0.00017898,2]
[312554931,1705979439229,-9509.456626,0.00017898,2]
[312554932,1705979439238,-9509.456626,0.00017898,2]
[312554933,1705979439248,-316.178239,0.00017898,2]
[312554934,1705979439258,-316.178239,0.00017898,2]
[312554935,1705979439267,-316.178239,0.00017898,2]
[312554936,1705979439277,-316.178239,0.00017898,2]
[312554937,1705979439287,-316.178239,0.00017898,2]
[312554938,1705979439297,-316.178239,0.00017898,2]
[312554939,1705979439307,-316.178239,0.00017898,2]
[312554940,1705979439316,-316.178239,0.00017898,2]
[312554941,1705979439325,-316.178239,0.00017898,2]
[312554942,1705979439334,-316.178239,0.00017898,2]
[312554943,1705979439344,-151.0,0.00017902,2]
[312554944,1705979439353,-151.0,0.00018796,2]
[312554945,1705979439363,-3588.4111807,0.000189,2]
[312554946,1705979439372,-1062.694548,0.000189,2]
[312554947,1705979439382,-1062.694548,0.000189,2]
[312554948,1705979439391,-9509.456626,0.000189,2]
[312554949,1705979439400,-9509.456636,0.000189,2]
[312554950,1705979439410,-316.178239,0.000189,2]
[312554951,1705979439419,-316.17824628,0.000189,2]
[312554952,1705979439428,-9988.87236805,0.00019,2]
[312554953,1705979439438,-1582.67395939,0.00019,2]
[312554954,1705979439449,-297.467896,0.00019,2]
[312554955,1705979439460,-297.467896,0.00019,2]
[312554956,1705979439470,-297.467896,0.00019,2]
[312554957,1705979439480,-297.467896,0.00019,2]
[312554958,1705979439489,-297.467896,0.00019,2]
[312554959,1705979439499,-297.467896,0.00019,2]
[312554960,1705979439509,-297.467896,0.00019,2]
[312554961,1705979439519,-297.467896,0.00019,2]
[312554962,1705979439528,-297.467896,0.00019,2]
[312554963,1705979439537,-297.467896,0.00019,2]
[312554964,1705979439547,-297.467896,0.00019,2]
[312554965,1705979439558,-297.467896,0.00019,2]
[312554966,1705979439567,-297.467896,0.00019,2]
[312554967,1705979439577,-297.467896,0.00019,2]
[312554968,1705979439586,-297.467896,0.00019,2]
[312554969,1705979439596,-297.467888,0.00019,2]
[312554970,1705979439605,-588.085186,0.00019,2]
[312554971,1705979439615,-588.085186,0.00019,2]
[312554972,1705979439624,-588.085186,0.00019,2]
[312554973,1705979439633,-588.085186,0.00019,2]
[312554974,1705979439643,-588.085186,0.00019,2]
[312554975,1705979439652,-588.085186,0.00019,2]
[312554976,1705979439662,-588.085186,0.00019,2]
[312554977,1705979439672,-588.085186,0.00019,2]
[312554978,1705979439682,-588.085186,0.00019,2]
[312554979,1705979439691,-588.085186,0.00019,2]
[312554980,1705979439700,-588.085186,0.00019,2]
[312554981,1705979439709,-588.085186,0.00019,2]
[312554982,1705979439719,-588.085186,0.00019,2]
[312554983,1705979439728,-588.085186,0.00019,2]
[312554984,1705979439738,-588.085186,0.00019,2]
[312554985,1705979439747,-588.08519267,0.00019,2]
[312554986,1705979439757,-1062.694548,0.00019,2]
[312554987,1705979439766,-1062.694548,0.00019,2]
[312554988,1705979439775,-1062.694548,0.00019,2]
[312554989,1705979439785,-1062.694557,0.00019,2]
[312554990,1705979439795,-164.091319,0.00019178,2]
[312554992,1705979439804,-619.64470973,0.00019589,2]
[312554993,1705979439814,-151.0,0.0001969,2]
[312554994,1705979439823,-303.48339143,0.000197,2]
[312554995,1705979439854,-9740.30076304,0.00019794,2]
[312554996,1705979439864,-937.88392891,0.00019985,2]
[312554997,1705979439874,-227.96750911,0.0002,2]
[312554998,1705979439885,-262.03685781,0.0002,2]
[312554999,1705979439894,-1198.20258863,0.0002,2]